bitfinex/quotes_ETHUSD_20240707
["timestamp","ask_amount","ask_price","bid_price","bid_amount"]
[1720359587180,3.0,2980.0,2978.9,2.67022116]
[1720359587722,3.0,2980.0,2978.7,0.30379163]
[1720359587883,3.0,2979.9,2978.7,0.30379163]
[1720359588084,3.0,2979.9,2978.8,0.06713233]
[1720359588288,3.0,2979.9,2978.7,0.30379163]
[1720359588684,2.8115,2979.8,2978.5,0.1098718]
[1720359588921,3.0,2979.3,2978.5,0.1098718]
[1720359589501,3.0,2979.6,2978.5,0.1098718]
[1720359589824,3.0,2979.6,2978.5,2.52716772]
[1720359589989,3.0,2979.6,2978.5,0.1098718]
[1720359591493,3.0,2979.7,2978.5,0.1098718]
[1720359591494,3.0,2979.2,2978.5,0.1098718]
[1720359592317,3.0,2979.4,2978.5,0.17701685]
[1720359592629,3.0,2979.2,2978.5,0.1098718]
[1720359593225,3.0,2979.4,2978.5,0.1098718]
[1720359593433,5.44,2979.5,2978.5,0.1098718]
[1720359593587,3.0,2979.3,2978.5,0.1098718]
[1720359593914,5.44,2979.5,2978.5,0.1098718]
[1720359594730,5.44,2979.5,2978.5,0.17700744]
[1720359595696,5.44,2979.5,2978.5,0.1098718]
[1720359595697,3.0,2979.3,2978.5,0.1098718]
[1720359596329,3.0,2978.8,2978.5,0.1098718]
[1720359596631,3.0,2979.1,2978.5,0.1098718]
[1720359597204,2.8115,2979.4,2978.5,0.1098718]
[1720359597205,3.0,2978.8,2978.5,0.1098718]
[1720359597633,3.0,2979.1,2978.5,0.1098718]
[1720359597933,0.06649333,2978.7,2978.5,0.1098718]
[1720359598270,0.06649333,2978.6,2978.5,0.1098718]
[1720359598602,3.0,2979.1,2978.5,0.1098718]
[1720359598827,5.44,2979.5,2978.5,0.1098718]
[1720359598828,0.06649333,2978.6,2978.5,0.1098718]
[1720359599010,3.0,2979.0,2978.5,0.1098718]
[1720359599224,0.0663734,2978.6,2978.5,0.1098718]
[1720359599442,3.0,2979.0,2978.5,0.1098718]
[1720359599642,0.0663734,2978.6,2978.5,0.1098718]
[1720359599819,3.0,2978.7,2978.5,0.1098718]
[1720359600020,0.0663734,2978.6,2978.5,0.1098718]
[1720359600416,1.22927184,2978.6,2978.5,0.1098718]
[1720359600624,0.0663734,2978.6,2978.5,0.1098718]
[1720359600841,3.0,2979.7,2978.6,2.8794]
[1720359601042,2.7619,2980.5,2978.7,0.06712731]
[1720359601043,1.16271924,2979.6,2978.7,0.06712731]
[1720359601340,1.16271924,2979.6,2978.6,5.22945]
[1720359601341,3.0,2980.4,2978.9,2.8794]
[1720359601543,1.16237811,2980.3,2979.1,2.8794]
[1720359601744,1.16237811,2980.2,2979.2,0.06711789]
[1720359601910,3.0,2980.5,2979.3,0.29465179]
[1720359602110,1.16220744,2980.4,2979.4,0.06711526]
[1720359602439,3.0,2980.2,2979.3,0.29465179]
[1720359602628,1.16220744,2980.1,2979.1,2.8794]
[1720359603142,3.0,2979.9,2979.1,2.8794]
[1720359603335,1.16220744,2979.8,2979.1,2.8794]
[1720359603725,1.16220744,2979.8,2979.2,0.06712909]
[1720359603913,3.0,2980.3,2979.2,0.06712909]
[1720359604108,1.16228529,2980.2,2979.3,0.29465291]
[1720359604449,3.0,2980.3,2979.1,2.8794]
[1720359604607,1.16227689,2980.1,2979.1,2.8794]
[1720359604809,1.16227689,2980.0,2979.1,2.8794]
[1720359605009,1.16227689,2980.2,2979.1,2.8794]
[1720359605210,3.0,2979.6,2978.7,2.8794]
[1720359605529,1.16252592,2979.5,2978.7,2.8794]
[1720359605841,1.16252592,2979.4,2978.7,2.8794]
[1720359606148,1.16263219,2979.3,2978.7,2.8794]
[1720359606333,1.16265066,2979.2,2978.5,0.1098718]
[1720359606639,3.0,2979.3,2978.5,0.1098718]
[1720359606810,3.0,2979.9,2978.7,2.8794]
[1720359607005,3.0,2980.0,2978.8,0.06713013]
[1720359607217,4.16240857,2979.9,2978.8,0.06713013]
[1720359607515,3.0,2979.9,2978.8,0.06713013]
[1720359607840,1.16239159,2979.8,2978.9,2.34984]
[1720359608139,3.0,2980.3,2979.0,0.24169701]
[1720359608469,1.16237097,2980.2,2979.0,0.24169701]
[1720359608630,1.16237097,2980.1,2979.1,2.94652334]
[1720359608941,3.0,2980.3,2979.1,2.94652334]
[1720359609145,1.16230768,2980.2,2979.1,2.94652334]
[1720359609319,3.0,2980.3,2979.2,0.55379804]
[1720359609524,1.16228682,2980.2,2979.3,0.06711728]
[1720359609741,0.05494756,2980.2,2979.3,0.06711728]
[1720359609910,0.05494756,2980.2,2979.2,0.55379804]
[1720359610110,3.0,2980.3,2979.1,2.8794]
[1720359610317,0.05494756,2980.1,2979.1,2.8794]
[1720359610625,3.0,2980.3,2979.1,2.8794]
[1720359610626,1.16237356,2980.0,2979.1,2.8794]
[1720359610965,0.05497353,2980.0,2979.1,5.22908]
[1720359611133,0.05497353,2980.0,2979.2,2.8794]
[1720359611448,0.05497353,2979.9,2979.3,0.522908]
[1720359611745,3.0,2980.4,2979.3,0.522908]
[1720359611965,0.05497353,2979.8,2979.3,0.522908]
[1720359612133,3.0,2980.4,2979.3,0.522908]
[1720359612328,0.05497353,2979.7,2979.2,2.8794]
[1720359612535,3.0,2980.4,2979.3,0.067119]
[1720359612843,0.05497353,2980.3,2979.3,0.06711537]
[1720359613213,6.68326438,2980.7,2979.3,0.06711537]
[1720359613415,0.05509363,2980.2,2979.3,0.06711537]
[1720359613722,3.0,2980.0,2979.2,2.8794]
[1720359613919,3.0,2979.7,2979.2,2.8794]
[1720359614094,3.68326438,2980.0,2979.2,2.8794]
[1720359614297,0.05518775,2979.6,2979.2,2.8794]
[1720359614502,0.68326438,2979.9,2979.2,2.8794]
[1720359615152,0.05518775,2979.8,2979.2,2.8794]
[1720359615351,0.68326438,2979.9,2979.2,2.8794]
[1720359615583,3.0,2979.4,2978.7,2.8794]
[1720359615794,2.14819075,2979.3,2978.7,2.8794]
[1720359616007,2.14824995,2979.2,2978.7,2.8794]
[1720359616190,0.73845213,2979.2,2978.7,2.8794]
[1720359616504,0.68326438,2979.1,2978.7,2.8794]
[1720359616792,0.68326438,2979.2,2978.7,2.8794]
[1720359616994,0.05499948,2979.0,2978.7,2.8794]
[1720359617163,0.68326438,2979.2,2978.7,2.8794]
[1720359617367,0.68326438,2979.4,2978.8,0.06713266]
[1720359617690,0.68326438,2979.4,2978.7,3.17832718]
[1720359617854,0.05494104,2979.3,2978.7,3.17832718]
[1720359618059,0.73820542,2979.3,2978.8,0.06713205]
[1720359618293,0.05494104,2979.3,2978.8,0.39167797]
[1720359618809,0.05494104,2979.3,2978.8,0.32454592]
[1720359619028,0.05494104,2979.3,2978.9,0.06713055]
[1720359619310,0.68326438,2979.7,2979.0,2.7948]
[1720359619516,0.05498975,2979.2,2979.1,0.06712123]
[1720359619789,0.68326438,2979.8,2979.1,0.35331335]
[1720359619958,0.68326438,2979.9,2979.2,2.7948]
[1720359620359,0.68326438,2979.8,2979.2,2.7948]
[1720359620799,0.68326438,2979.7,2979.2,2.7948]
[1720359620967,0.68326438,2979.5,2978.6,2.7948]
[1720359621170,0.68326438,2979.4,2978.7,3.59046718]
[1720359621481,0.68326438,2979.5,2978.7,3.59046718]
[1720359621690,0.68326438,2979.4,2978.7,3.59046718]
[1720359621858,1.36652876,2979.7,2978.8,2.7948]
[1720359621859,0.68326438,2979.7,2978.8,2.7948]
[1720359622058,0.68326438,2979.7,2978.8,7.49458]
[1720359622255,0.68326438,2979.7,2978.9,1.10850472]
[1720359622456,0.68326438,2979.7,2979.0,5.21169193]
[1720359622685,0.68326438,2979.8,2979.0,5.21169193]
[1720359622897,3.0,2980.3,2979.0,2.7948]
[1720359623198,0.68739386,2979.7,2979.0,2.7948]
[1720359623570,0.68739386,2979.6,2979.0,2.7948]
[1720359623896,0.68739386,2979.5,2979.0,2.7948]
[1720359624396,0.68739386,2979.4,2979.0,2.7948]
[1720359624692,1.37478772,2979.7,2979.0,2.7948]
[1720359624693,0.68739386,2979.5,2979.0,2.7948]
[1720359624917,0.68739386,2979.7,2979.1,0.0671237]
[1720359625116,0.68739386,2979.9,2979.2,0.52116337]
[1720359625299,0.68739386,2980.0,2979.2,0.52116337]
[1720359625609,3.0,2980.0,2979.0,2.7948]
[1720359625772,0.6871099,2979.6,2979.0,2.7948]
[1720359626162,0.6871099,2979.5,2979.0,2.7948]
[1720359626402,0.6871099,2979.4,2978.7,3.0]
[1720359626608,0.6871099,2979.3,2978.6,2.7948]
[1720359626770,0.6871099,2979.1,2978.6,2.7948]
[1720359626971,0.6871099,2979.0,2978.6,2.7948]
[1720359627185,0.05486316,2978.9,2978.6,2.7948]
[1720359627466,0.6871099,2979.1,2978.6,2.7948]
[1720359627671,0.05486316,2978.8,2978.6,2.7948]
[1720359627870,0.6871099,2979.1,2978.6,3.09561767]
[1720359628071,0.05486316,2978.7,2978.6,3.09561767]
[1720359628283,0.6871099,2979.2,2978.6,3.09561767]
[1720359628497,0.05483069,2978.7,2978.6,2.7948]
[1720359628705,0.6871099,2979.1,2978.6,2.7948]
[1720359628909,0.6871099,2979.2,2978.6,2.7948]
[1720359629395,0.05483394,2979.1,2978.6,2.7948]
[1720359629598,0.05483394,2979.1,2978.6,3.09561767]
[1720359631275,0.05483394,2979.1,2978.7,0.06713199]
[1720359631513,0.6871099,2979.3,2978.7,0.06713199]
[1720359631684,0.05483394,2979.0,2978.7,0.06713186]
[1720359631889,0.6871099,2979.4,2978.8,2.7948]
[1720359632217,0.6871099,2979.4,2978.9,0.52118719]
[1720359632446,0.6871099,2979.6,2978.9,0.52118719]
[1720359632881,0.6871099,2979.6,2979.0,0.06712383]
[1720359633383,0.6871099,2979.6,2978.9,0.52118719]
[1720359633608,0.6871099,2979.5,2978.8,2.7948]
[1720359633831,0.6871099,2979.4,2978.8,2.7948]
[1720359634530,0.6871099,2979.3,2978.8,2.7948]
[1720359634923,0.6871099,2979.4,2978.8,2.7948]
[1720359635213,0.6871099,2979.4,2978.8,3.10436177]
[1720359635809,0.6871099,2979.5,2978.8,3.10436177]
[1720359636037,0.6871099,2979.4,2978.8,3.10436177]
[1720359636223,0.6871099,2979.5,2978.8,3.10436177]
[1720359636419,0.6871099,2979.5,2978.9,0.31043618]
[1720359636943,0.6871099,2979.6,2978.9,0.31043618]
[1720359639340,0.6871099,2979.5,2978.9,0.31043618]
[1720359639740,0.6871099,2979.6,2978.9,2.66028618]
[1720359639978,0.6871099,2979.6,2979.0,0.8114508]
[1720359642341,0.10717564,2979.5,2979.0,0.8114508]
[1720359643271,0.79428554,2979.5,2979.0,0.8114508]
[1720359643640,0.10717564,2979.5,2979.0,0.8114508]
[1720359644174,0.79428554,2979.5,2979.0,0.8114508]
[1720359644345,0.10717564,2979.5,2979.0,0.8114508]
[1720359644754,0.79428554,2979.5,2979.0,0.8114508]
[1720359645968,0.6871099,2979.4,2979.0,0.8114508]
[1720359646170,0.79428554,2979.5,2979.1,0.31613008]
[1720359646358,0.11526086,2979.3,2979.1,0.31613008]
[1720359646538,0.6871099,2979.5,2979.1,0.31613008]
[1720359646740,0.11752433,2979.2,2978.9,2.34985]
[1720359647072,0.11978795,2979.1,2978.9,2.34985]
[1720359647268,0.6871099,2979.5,2978.9,2.34985]
[1720359647490,0.12205172,2979.0,2978.9,2.34985]
[1720359647683,0.6871099,2979.4,2978.9,2.34985]
[1720359647856,0.6871099,2979.6,2979.3,2.7221]
[1720359648050,0.6871099,2979.7,2979.3,2.78921817]
[1720359648251,0.6871099,2979.8,2979.3,2.78921817]
[1720359648668,0.6871099,2979.8,2979.3,2.7221]
[1720359648896,0.6871099,2979.9,2979.4,0.06711747]
[1720359649675,0.6871099,2979.9,2979.3,5.07164]
[1720359649913,0.6871099,2979.9,2979.5,2.34932]
[1720359650207,5.59710998,2980.2,2979.7,5.07132]
[1720359650363,0.6871099,2980.3,2979.7,5.07132]
[1720359650704,0.6871099,2980.3,2979.7,2.7221]
[1720359650905,0.6871099,2980.0,2979.7,2.7221]
[1720359651199,1.03066486,2980.2,2979.7,2.7221]
[1720359651200,0.6871099,2980.2,2979.7,2.7221]
[1720359651417,0.6871099,2980.3,2979.7,2.7221]
[1720359651597,0.6871099,2980.3,2979.7,5.07132]
[1720359653183,0.6871099,2980.3,2979.8,0.06710941]
[1720359653519,0.6871099,2980.4,2979.8,0.37833721]
[1720359653877,0.6871099,2980.3,2979.7,5.07132]
[1720359654073,0.6871099,2980.4,2979.5,2.34933]
[1720359654304,0.6871099,2980.2,2979.8,2.34914]
[1720359654505,0.6871099,2980.4,2979.9,2.583964]
[1720359654708,0.6871099,2980.4,2979.9,2.34905]
[1720359654912,0.6871099,2980.5,2979.9,2.34905]
[1720359655512,0.6871099,2980.6,2979.9,2.34905]
[1720359656015,0.6871099,2980.6,2979.7,2.34916]
[1720359656397,0.6871099,2980.5,2979.8,2.34914]
[1720359656593,0.6871099,2980.5,2979.9,2.34906]
[1720359656797,0.6871099,2980.5,2979.8,2.34912]
[1720359656994,0.6871099,2980.5,2979.9,2.34906]
[1720359657195,0.6871099,2980.6,2979.9,2.34906]
[1720359657517,0.08395776,2980.5,2980.1,2.7221]
[1720359658478,0.08395776,2980.5,2979.6,2.947]
[1720359658702,3.0,2980.3,2979.0,2.947]
[1720359658916,0.6871099,2980.2,2979.1,5.34969]
[1720359659220,0.6871099,2980.2,2979.3,2.34954]
[1720359659221,0.78278718,2980.2,2979.3,2.34954]
[1720359659421,0.6871099,2980.1,2979.4,0.0671166]
[1720359659595,0.09716216,2980.1,2979.4,0.0671166]
[1720359659789,0.09716216,2980.1,2979.4,0.30878226]
[1720359659995,3.6871099,2980.3,2979.4,0.30878226]
[1720359660523,0.78200996,2980.2,2979.4,0.30878226]
[1720359660727,0.78200996,2980.2,2979.5,0.06711657]
[1720359661030,0.78200996,2980.2,2979.6,2.947]
[1720359661031,0.09490006,2980.2,2979.6,2.947]
[1720359661227,0.09490006,2980.2,2979.7,0.06711187]
[1720359662224,0.09490006,2980.2,2979.7,2.95263106]
[1720359662551,0.68704152,2980.5,2979.8,0.06710667]
[1720359662830,0.68704152,2980.5,2980.0,2.34899]
[1720359663032,0.08029102,2980.4,2980.1,2.41599004]
[1720359663205,5.5970416,2980.9,2980.2,2.947]
[1720359663397,0.68704152,2980.9,2980.3,0.06709724]
[1720359663596,1.03056229,2981.1,2980.4,2.41576729]
[1720359663597,0.08547258,2980.8,2980.4,2.41576729]
[1720359663858,0.68704152,2981.3,2980.2,5.2958]
[1720359664044,0.07469308,2980.7,2980.4,2.34867]
[1720359664244,0.68704152,2981.3,2980.5,0.234867]
[1720359664559,0.07695413,2980.6,2980.2,2.947]
[1720359664858,0.68704152,2981.1,2979.9,4.69801]
[1720359664859,0.07921532,2980.5,2979.9,4.69801]
[1720359665058,0.07921532,2980.5,2980.0,2.34898]
[1720359665258,0.68704152,2981.0,2980.0,2.34898]
[1720359665462,0.08147667,2980.4,2980.0,2.34898]
[1720359665766,0.68704152,2981.0,2979.8,5.947]
[1720359665767,0.26851819,2981.0,2980.2,2.947]
[1720359665925,1.37408305,2981.3,2980.2,7.64466]
[1720359665926,0.00226149,2980.3,2980.2,7.64466]
[1720359666124,3.0,2981.4,2980.3,2.34872]
[1720359666125,4.03056229,2981.4,2980.3,2.34872]
[1720359666356,1.03056229,2981.3,2980.2,2.947]
[1720359666558,4.03056229,2981.4,2980.2,5.29579]
[1720359666763,1.03056229,2981.4,2980.2,5.29579]
[1720359666964,5.94056237,2981.5,2980.4,2.34867]
[1720359667268,4.91000008,2981.5,2980.5,2.34858]
[1720359667874,4.91000008,2981.5,2980.6,0.06708583]
[1720359668051,4.91000008,2981.5,2980.6,0.42045014]
[1720359668248,4.91000008,2981.5,2980.6,2.76895014]
[1720359668484,4.91000008,2981.5,2980.7,2.947]
[1720359668781,4.91000008,2981.5,2980.8,2.41544362]
[1720359668954,4.91000008,2981.5,2980.9,2.34827]
[1720359669272,1.03056229,2982.0,2981.0,0.54345068]
[1720359669480,3.0,2982.0,2981.0,0.54345068]
[1720359669692,5.94056237,2982.1,2981.1,0.06707817]
[1720359669834,1.03056229,2982.4,2981.2,2.34803]
[1720359670029,3.0,2982.4,2981.3,0.06707188]
[1720359670271,20.22410008,2982.5,2981.3,0.06707188]
[1720359671781,3.0,2982.4,2981.3,0.06707188]
[1720359673253,3.0,2982.4,2981.4,0.06707156]
[1720359673539,4.91000008,2982.5,2981.6,2.34772]
[1720359673964,4.91000008,2982.5,2981.5,2.947]
[1720359674164,5.9041,2982.3,2981.1,2.947]
[1720359674408,3.0,2981.9,2980.7,2.947]
[1720359674884,3.0,2981.9,2980.8,0.06708308]
[1720359675230,3.0,2981.9,2980.7,2.947]
[1720359675389,3.0,2981.6,2980.7,2.947]
[1720359675570,3.0,2981.6,2980.2,2.947]
[1720359676068,0.68376706,2981.6,2980.2,2.947]
[1720359676275,3.0,2981.4,2980.2,2.947]
[1720359676797,3.0,2981.5,2980.2,2.947]
[1720359677012,3.0,2981.6,2980.3,0.3416798]
[1720359677209,3.0,2981.6,2980.2,2.947]
[1720359677366,0.68376706,2981.5,2980.2,2.947]
[1720359677571,3.0,2981.3,2980.2,2.947]
[1720359677769,3.0,2981.3,2979.9,2.34906]
[1720359677770,3.68376706,2981.3,2979.5,2.34935]
[1720359677975,3.0,2981.0,2979.6,0.234935]
[1720359678219,3.0,2980.7,2979.2,2.34961]
[1720359678370,3.0,2980.7,2979.0,2.34972]
[1720359678808,3.0,2980.7,2979.1,2.34968]
[1720359679280,3.0,2980.7,2978.9,2.3498]
[1720359679472,2.78489473,2980.6,2979.0,2.8794]
[1720359679966,2.78489473,2980.6,2979.1,3.0]
[1720359680171,2.78489473,2980.6,2979.0,0.52968]
[1720359680569,3.0,2980.3,2978.8,2.947]
[1720359680804,3.68380908,2980.3,2978.8,2.947]
[1720359681165,0.68378298,2980.2,2978.8,2.947]
[1720359681374,3.68378298,2980.3,2978.8,2.947]
[1720359681570,0.0024333,2980.1,2978.8,2.947]
[1720359681802,0.68378298,2980.2,2978.9,0.2947]
[1720359681992,0.00417222,2980.0,2978.9,0.2947]
[1720359682192,0.00152185,2980.1,2978.9,0.2947]
[1720359682392,0.00152185,2980.1,2979.0,0.06712902]
[1720359682594,0.0046951,2980.1,2979.0,0.06712902]
[1720359682793,0.0046951,2980.1,2979.1,0.2711669]
[1720359683074,3.0,2980.3,2979.2,0.06712157]
[1720359683513,3.0,2980.3,2978.9,0.2947]
[1720359683670,3.68378298,2980.3,2978.9,0.2947]
[1720359683872,3.68378298,2980.3,2979.0,0.06712768]
[1720359684111,3.0,2980.3,2979.0,0.06712768]
[1720359684604,3.68378174,2980.3,2979.0,0.06712768]
[1720359685211,3.0,2980.3,2979.0,2.41689586]
[1720359686207,3.0,2980.3,2978.9,0.2947]
[1720359686407,3.68378174,2980.3,2979.0,0.06712814]
[1720359686609,3.0,2980.3,2979.0,0.39801095]
[1720359686810,0.68378174,2980.4,2979.1,0.0671256]
[1720359687017,3.0,2980.5,2979.2,2.34954]
[1720359687198,3.0,2980.5,2979.3,0.0671142]
[1720359687508,3.0,2980.5,2979.2,2.34954]
[1720359687691,3.0,2980.5,2979.3,0.234954]
[1720359688681,3.0,2980.5,2979.3,2.584484]
[1720359688895,2.44,2980.6,2979.5,2.82]
[1720359689097,4.91000008,2980.7,2979.6,0.06711397]
[1720359689335,0.68378174,2980.9,2979.7,0.06710994]
[1720359689550,3.85507261,2981.0,2979.7,0.06710994]
[1720359689551,0.68378174,2981.0,2979.8,2.34913]
[1720359689826,4.53896677,2981.4,2979.6,0.28871142]
[1720359689827,0.68378174,2981.2,2979.9,0.0671026]
[1720359690128,3.51318174,2981.4,2980.0,2.82]
[1720359690429,3.51318174,2981.4,2980.1,2.41595661]
[1720359690620,3.51318174,2981.4,2980.1,4.76479661]
[1720359690823,3.51318174,2981.4,2980.2,3.10730966]
[1720359691002,2.8294,2981.4,2980.3,0.06709599]
[1720359691199,0.68378174,2981.5,2980.5,2.34858]
[1720359691399,0.68378174,2981.5,2980.6,0.067089]
[1720359691604,0.68378174,2981.5,2980.7,5.16842]
[1720359691828,0.68378174,2981.5,2980.8,0.590637]
[1720359692431,3.0,2982.2,2980.8,2.938997]
[1720359692730,6.54,2982.6,2980.9,2.34827]
[1720359692935,3.0,2982.6,2981.0,2.41526861]
[1720359693146,3.0,2982.6,2981.0,2.87689895]
[1720359693457,0.68468008,2982.2,2980.8,0.5235509]
[1720359693754,0.68468008,2982.2,2980.9,0.0670852]
[1720359693914,0.68468008,2982.2,2980.9,2.4153052]
[1720359694515,0.68468008,2982.2,2980.7,5.16839]
[1720359695044,0.68450023,2982.1,2980.8,2.34835]
[1720359695241,0.68450023,2982.1,2980.9,2.41531887]
[1720359695409,0.68450023,2982.1,2980.9,2.34824]
[1720359695726,0.68450023,2982.0,2980.8,0.751672]
[1720359695904,0.68450023,2982.0,2980.7,2.82]
[1720359696528,5.8294,2981.8,2980.2,3.57847966]
[1720359696734,0.68450023,2981.6,2980.2,2.82]
[1720359697106,0.68430509,2981.6,2980.2,2.82]
[1720359697311,0.68430509,2981.5,2980.2,2.82]
[1720359697708,0.68430509,2981.5,2979.2,3.54]
[1720359697709,3.68430509,2981.5,2979.8,2.82]
[1720359697909,3.68430509,2981.5,2979.9,0.751836]
[1720359698144,3.68430509,2981.5,2979.8,2.82]
[1720359698346,3.68430509,2981.5,2979.9,3.0]
[1720359698748,3.68430509,2981.5,2980.1,2.3489]
[1720359699043,3.68430509,2981.5,2980.0,2.34899]
[1720359699446,3.68430509,2981.5,2980.1,2.34889]
[1720359699619,3.68430509,2981.5,2980.2,0.234889]
[1720359700035,3.68430509,2981.5,2979.8,2.82]
[1720359700213,0.68430509,2981.2,2979.8,2.82]
[1720359700410,3.49230509,2981.1,2979.5,2.34932]
[1720359700636,3.68430509,2981.0,2979.6,2.4164075]
[1720359701033,3.0,2981.0,2979.7,2.34922]
[1720359701313,3.0,2981.0,2979.8,0.30873499]
[1720359701532,0.68430509,2981.2,2980.1,2.3489]
[1720359701732,5.93645772,2981.4,2980.3,2.8857]
[1720359701733,3.0,2981.3,2980.3,2.8857]
[1720359701932,3.0,2981.3,2980.4,0.0670957]
[1720359702325,3.0,2981.4,2980.4,0.0670957]
[1720359702720,0.68430509,2981.6,2980.4,0.0670957]
[1720359703753,3.68430509,2981.7,2980.4,0.0670957]
[1720359703954,0.68430509,2981.6,2980.4,0.0670957]
[1720359704143,0.68430509,2981.5,2980.4,0.0670957]
[1720359704337,0.68430509,2981.6,2980.3,5.23439]
[1720359704655,0.68430509,2981.5,2979.9,2.8857]
[1720359704857,0.68430509,2981.3,2980.0,3.0]
[1720359705017,0.68430509,2981.4,2980.0,3.0]
[1720359705429,0.68430509,2981.3,2980.0,3.0]
[1720359706861,0.68430509,2981.4,2980.0,3.0]
[1720359707033,0.68430509,2981.3,2980.1,0.823476]
[1720359708853,0.68430509,2981.2,2980.1,0.823476]
[1720359709060,0.68430509,2981.3,2980.1,0.823476]
[1720359710967,0.68430509,2981.3,2980.3,2.34872]
[1720359711142,0.68430509,2981.3,2980.4,0.3086727]
[1720359712231,0.68430509,2981.4,2980.4,0.3086727]
[1720359712436,1.84623998,2981.3,2980.1,0.823476]
[1720359712659,1.16193489,2981.2,2980.1,0.823476]
[1720359712853,0.68430509,2981.3,2980.1,0.823476]
[1720359713166,3.0,2981.7,2980.1,0.823476]
[1720359713370,0.68453936,2981.3,2980.1,0.823476]
[1720359713532,0.68453936,2981.3,2980.2,0.8521366]
[1720359715046,1.1619312,2981.2,2980.2,0.8521366]
[1720359715239,1.1619312,2981.1,2980.2,0.8521366]
[1720359715435,1.1619312,2981.1,2979.9,5.23477]
[1720359715436,1.1619312,2981.1,2979.9,2.8857]
[1720359715761,0.68453936,2981.0,2979.9,2.8857]
[1720359715960,1.84647056,2980.9,2979.9,2.8857]
[1720359716164,1.84647056,2980.8,2979.9,2.8857]
[1720359716339,1.16210069,2980.7,2979.9,2.8857]
[1720359716537,0.68453936,2980.9,2979.9,2.8857]
[1720359716739,1.84664448,2980.8,2979.9,2.8857]
[1720359716950,1.16210512,2980.7,2980.0,0.06711022]
[1720359717140,0.68453936,2981.0,2980.0,0.06711022]
[1720359717444,1.1619993,2980.9,2980.0,0.06711022]
[1720359717649,0.68453936,2981.0,2980.0,0.06711022]
[1720359717867,1.16197339,2980.9,2980.1,0.53018602]
[1720359718067,0.68453936,2981.0,2980.2,0.06710115]
[1720359718269,1.16197161,2980.9,2980.2,0.06710115]
[1720359718477,1.16198073,2980.8,2980.2,0.06710115]
[1720359718675,0.68453936,2981.0,2980.2,0.06710115]
[1720359718969,1.16198481,2980.9,2980.2,0.06710115]
[1720359719174,1.16198481,2980.8,2980.2,0.06710115]
[1720359719380,0.68453936,2981.0,2980.2,0.06710115]
[1720359719546,1.16194863,2980.9,2980.2,0.06710115]
[1720359719869,0.68453936,2981.0,2980.2,0.36172787]
[1720359720037,1.16196244,2980.8,2980.3,0.06709829]
[1720359720243,0.6853317,2980.9,2980.1,0.53018602]
[1720359720443,1.84730973,2980.8,2980.1,0.53018602]
[1720359720674,0.6853317,2980.8,2980.1,0.53018602]
[1720359720838,0.6853317,2980.9,2980.1,0.53018602]
[1720359721037,1.16197371,2980.8,2980.1,0.53018602]
[1720359721266,0.6853317,2980.9,2980.2,0.2879166]
[1720359721467,0.6853317,2980.9,2980.3,0.06709832]
[1720359721686,1.84728943,2980.8,2980.2,0.2879166]
[1720359721852,0.6853317,2980.8,2980.3,0.06709833]
[1720359722045,0.6853317,2980.9,2980.3,0.06709833]
[1720359722245,0.6853317,2980.9,2980.1,0.53018602]
[1720359722444,0.6853317,2980.9,2980.3,2.8764]
[1720359722640,0.6853317,2981.1,2980.4,0.06709113]
[1720359722845,5.59533178,2981.2,2980.5,0.52921911]
[1720359723139,0.6853317,2981.3,2980.5,0.52921911]
[1720359723348,0.6853317,2981.4,2980.5,0.52921911]
[1720359723571,1.84708355,2981.3,2980.6,0.06709094]
[1720359723772,0.6853317,2981.3,2980.6,0.06709094]
[1720359723979,0.6853317,2981.3,2980.6,0.36158795]
[1720359724180,1.16176138,2981.2,2980.6,0.36158795]
[1720359724385,0.6853317,2981.3,2980.6,0.36158795]
[1720359724608,0.6853317,2981.3,2980.7,2.8764]
[1720359724896,13.0953317,2981.6,2980.8,0.06708483]
[1720359725059,13.0953317,2981.6,2980.9,0.52919148]
[1720359725255,12.41,2981.6,2981.0,0.06708484]
[1720359726701,12.41,2981.6,2981.0,2.41526484]
[1720359727010,12.41,2981.6,2981.1,5.22451]
[1720359727179,4.91000008,2981.8,2981.2,0.06707806]
[1720359727378,4.91000008,2981.8,2981.3,0.52915881]
[1720359728214,4.91000008,2981.8,2981.3,0.59623675]
[1720359729074,7.34421263,2981.7,2979.7,2.34918]
[1720359729313,3.0,2980.9,2979.6,2.8764]
[1720359729493,0.6853317,2980.7,2979.7,0.06711824]
[1720359729704,0.75240972,2980.6,2979.7,0.06711824]
[1720359729879,0.6853317,2980.5,2979.7,0.06711824]
[1720359730324,0.01024784,2980.4,2979.7,0.06711824]
[1720359730615,1.71501328,2980.9,2980.1,2.8764]
[1720359730616,0.6853317,2980.8,2980.1,2.8764]
[1720359730925,0.6853317,2981.1,2980.2,2.871319]
[1720359731077,4.9770781,2981.2,2980.2,2.871319]
[1720359731282,0.68616466,2981.0,2980.2,2.871319]
[1720359732214,0.75324268,2980.9,2980.1,2.8764]
[1720359732400,0.68616466,2980.7,2980.1,2.8764]
[1720359733121,0.68616466,2980.6,2980.1,2.8764]
[1720359734030,0.68616466,2980.7,2980.1,2.8764]
[1720359734242,0.68616466,2980.8,2980.2,0.5896357]
[1720359734403,0.68616466,2980.7,2980.2,0.5896357]
[1720359734740,1.02924699,2980.9,2980.2,0.5896357]
[1720359734741,0.68616466,2980.8,2980.2,0.5896357]
[1720359735201,0.68616466,2980.7,2980.2,0.522537]
[1720359735405,0.68616466,2980.8,2980.2,0.522537]
[1720359736005,0.68616466,2980.7,2980.2,0.522537]
[1720359736913,0.68616466,2980.7,2980.3,0.06709866]
[1720359737310,0.68616466,2980.8,2980.3,0.06709866]
[1720359737535,0.68616466,2980.7,2980.3,0.06709866]
[1720359737901,0.68616466,2980.7,2980.2,0.522537]
[1720359738105,0.68616466,2980.7,2980.1,2.8764]
[1720359740076,0.68616466,2980.6,2980.1,2.8764]
[1720359740275,0.68616466,2980.7,2980.2,2.34883]
[1720359740476,0.68616466,2980.8,2980.2,0.06709896]
[1720359740777,4.91000008,2981.2,2980.7,2.34844]
[1720359740975,4.91000008,2981.2,2980.9,2.8761]
[1720359741220,0.68616466,2981.4,2980.9,2.8761]
[1720359741221,0.68616466,2981.4,2981.0,0.0670843]
[1720359741345,0.68616466,2981.5,2981.0,0.0670843]